fUSD/lending_fUSD_20241001
["ID","MTS","AMOUNT","RATE_DAILY","PERIOD"]
[339661919,1727820692647,-150.0,0.00033214,2]
[339661920,1727820692657,-151.96,0.00033214,2]
[339661921,1727820692666,-152.99,0.00033214,2]
[339661922,1727820692676,-300.0,0.00033214,2]
[339661923,1727820692685,-358.38,0.00033214,2]
[339661924,1727820692697,-200.92,0.00033214,2]
[339661925,1727820692707,-533.85,0.00033214,2]
[339661926,1727820692717,-428.61,0.00033214,2]
[339661927,1727820692726,-291.7,0.00033214,2]
[339661928,1727820692737,-150.0,0.00033214,2]
[339661929,1727820692747,-150.0,0.00033214,2]
[339661930,1727820692756,-150.0,0.00033214,2]
[339661931,1727820692766,-533.85,0.00033214,2]
[339661932,1727820692775,-150.0,0.00033214,2]
[339661933,1727820692784,-358.38,0.00033214,2]
[339661934,1727820692793,-428.61,0.00033214,2]
[339661935,1727820692803,-150.0,0.00033214,2]
[339661936,1727820692812,-150.0,0.00033214,2]
[339661937,1727820692821,-533.85,0.00033214,2]
[339661938,1727820692830,-150.0,0.00033214,2]
[339661939,1727820692839,-358.38,0.00033214,2]
[339661940,1727820692848,-150.0,0.00033214,2]
[339661941,1727820692857,-428.61,0.00033214,2]
[339661942,1727820692866,-428.61,0.00033214,2]
[339661943,1727820692875,-150.0,0.00033214,2]
[339661944,1727820692884,-533.85,0.00033214,2]
[339661945,1727820692893,-358.38,0.00033214,2]
[339661946,1727820692902,-150.0,0.00033214,2]
[339661947,1727820692911,-150.0,0.00033214,2]
[339661948,1727820692920,-257.28,0.00033214,2]
[339661949,1727820692929,-426.67,0.00033214,2]
[339661950,1727820692938,-358.38,0.00033214,2]
[339661951,1727820692947,-533.85,0.00033214,2]
[339661952,1727820692957,-533.85,0.00033214,2]
[339661953,1727820692966,-358.38,0.00033214,2]
[339661954,1727820692975,-358.38,0.00033214,2]
[339661955,1727820692984,-533.85,0.00033214,2]
[339661956,1727820692993,-201.0,0.0003326,30]
[339661957,1727820693002,-150.0,0.000333,120]
[339661958,1727820693011,-271.24,0.0003339,2]
[339661959,1727820693021,-1000.0,0.000334,15]
[339661960,1727820693030,-514.54932685,0.00033428,7]
[339661961,1727820693040,-593.08731422,0.00033428,7]
[339661962,1727820693049,-947.99133299,0.00033428,7]
[339661963,1727820693058,-150.0,0.00033475,120]
[339661964,1727820693068,-1145.14096828,0.000335,2]
[339661965,1727820693077,-768.0,0.00033674,30]
[339661966,1727820693087,-150.0,0.00033734,120]
[339661967,1727820693096,-2000.0,0.00033773,2]
[339661968,1727820693105,-2000.0,0.00033773,2]
[339661969,1727820693115,-2000.0,0.00033773,2]
[339661970,1727820693127,-2000.0,0.00033773,2]
[339661971,1727820693136,-2000.0,0.00033773,2]
[339661972,1727820693145,-2000.0,0.00033773,2]
[339661973,1727820693155,-2000.0,0.00033773,2]
[339661974,1727820693164,-2000.0,0.00033773,2]
[339661975,1727820693174,-2000.0,0.00033773,2]
[339661976,1727820693183,-2000.0,0.00033773,2]
[339661977,1727820693193,-1802.0,0.00033773,2]
[339661978,1727820693202,-151.0,0.00033773,7]
[339661979,1727820693212,-206.0,0.0003383,30]
[339661980,1727820693221,-514.54932685,0.00033841,7]
[339661981,1727820693230,-593.08731422,0.00033841,7]
[339661982,1727820693242,-947.99133299,0.00033841,7]
[339661983,1727820693251,-500.0,0.00033903,2]
[339661984,1727820693260,-999.0,0.00033972,120]
[339661985,1727820693270,-500.0,0.00034,14]
[339661986,1727820693279,-37771.39019722,0.00034,10]
[339661987,1727820693289,-1800.0,0.00034,35]
[339661988,1727820693299,-1811.9720786,0.00034,120]
[339661989,1727820693308,-2615.87423845,0.00034,120]
[339661990,1727820693317,-2110.0,0.00034,2]
[339661991,1727820693327,-1000.0,0.00034,120]
[339661992,1727820693336,-500.0,0.00034,120]
[339661993,1727820693346,-150.0,0.0003403,120]
[339661994,1727820693356,-500.0,0.0003403,2]
[339661995,1727820693366,-358.38,0.00034036,2]
[339661996,1727820693376,-358.38,0.00034036,2]
[339661997,1727820693385,-337.62,0.00034036,2]
[339661998,1727820693395,-532.38,0.00034036,2]
[339661999,1727820693404,-159.71104133,0.00034059,2]
[339662000,1727820693414,-636.17133296,0.00034232,2]
[339662001,1727820693424,-514.54932685,0.00034253,7]
[339662002,1727820693433,-593.08731422,0.00034253,7]
[339662003,1727820693443,-947.99133299,0.00034253,7]
[339662004,1727820693452,-150.0,0.00034321,120]
[339662005,1727820693461,-500.0,0.00034405,2]
[339662006,1727820693471,-500.0,0.00034407,2]
[339662007,1727820693480,-679.94543023,0.0003443,10]
[339662008,1727820693494,-4691.5,0.00034449,88]
[339662009,1727820693509,-2110.0,0.000345,2]
[339662010,1727820693519,-150.0,0.00034548,10]
[339662011,1727820693529,-152.0,0.00034579,8]
[339662012,1727820693539,-150.0,0.000346,120]
[339662013,1727820693549,-500.0,0.00034629,2]
[339662014,1727820693558,-751.3317762,0.00034658,2]
[339662015,1727820693567,-514.54932685,0.00034666,7]
[339662016,1727820693577,-593.08731422,0.00034666,7]
[339662017,1727820693586,-947.99133299,0.00034666,7]
[339662018,1727820693595,-934.0420317,0.00034688,2]
[339662019,1727820693604,-813.9,0.000347,30]
[339662020,1727820693616,-150.0,0.0003474,20]
[339662021,1727820693629,-201.0,0.0003477,30]
[339662022,1727820693639,-832.707176,0.000348,30]
[339662023,1727820693650,-500.0,0.0003482,2]
[339662024,1727820693659,-1296.268981,0.0003494,14]
[339662025,1727820693670,-500.0,0.00034945,2]
[339662026,1727820693679,-1000.0,0.0003496,14]
[339662027,1727820693689,-500.0,0.00034977,2]
[339662028,1727820693699,-1000.0,0.0003498,14]
[339662029,1727820693711,-50000.0,0.00035,35]
[339662030,1727820693720,-3900.0,0.00035,7]
[339662031,1727820693730,-530.15793096,0.00035,7]
[339662032,1727820693739,-250.0,0.00035,20]
[339662033,1727820693749,-150.0,0.00035,15]
[339662034,1727820693758,-500.0,0.00035,28]
[339662035,1727820693768,-1279.69576051,0.00035,2]
[339662036,1727820693778,-1303.33978006,0.00035,7]
[339662037,1727820693787,-1110.276234,0.00035,30]
[339662038,1727820693796,-1800.0,0.00035,36]
[339662039,1727820693806,-1616.45200812,0.00035,100]
[339662040,1727820693815,-3327.18474129,0.00035,120]
[339662041,1727820693825,-2287.61544665,0.00035,90]
[339662042,1727820693834,-1814.51724782,0.00035,120]
[339662043,1727820693844,-200.0,0.00035,120]
[339662044,1727820693853,-1333.2052146,0.00035,31]
[339662045,1727820693862,-2110.0,0.00035,2]
[339662046,1727820693872,-2000.0,0.00035,30]
[339662047,1727820693881,-500.0,0.00035,120]
[339662048,1727820693890,-151.0,0.00035,7]
[339662049,1727820693900,-152.52989,0.00035,7]
[339662050,1727820693909,-151.0,0.00035,7]
[339662051,1727820693918,-151.0,0.00035,7]
[339662052,1727820693927,-151.0,0.00035,7]
[339662053,1727820693936,-870.244677,0.00035,7]
[339662054,1727820693945,-870.244677,0.00035,7]
[339662055,1727820693954,-151.0,0.00035,7]
[339662056,1727820693963,-151.0,0.00035,7]
[339662057,1727820693972,-151.0,0.00035,7]
[339662058,1727820693981,-151.0,0.00035,7]
[339662059,1727820693995,-151.0,0.00035,7]
[339662060,1727820694004,-151.0,0.00035,7]
[339662061,1727820694013,-151.0,0.00035,7]
[339662062,1727820694023,-151.0,0.00035,7]
[339662063,1727820694032,-151.0,0.00035,7]
[339662064,1727820694041,-198.668158,0.00035,7]
[339662065,1727820694050,-151.0,0.00035,7]
[339662066,1727820694059,-246.537632,0.00035,7]
[339662067,1727820694068,-151.0,0.00035,7]
[339662068,1727820694077,-367.583254,0.00035,7]
[339662069,1727820694086,-367.583254,0.00035,7]
[339662070,1727820694095,-1000.0,0.00035,14]
[339662071,1727820694104,-151.0,0.00035,7]
[339662072,1727820694113,-151.0,0.00035,7]
[339662073,1727820694122,-151.0,0.00035,7]
[339662074,1727820694131,-1114.29348745,0.00035,15]
[339662075,1727820694140,-21632.17400463,0.00035,12]
[339662076,1727820694149,-1000000.0,0.00035,120]
[339662077,1727820694158,-999.0,0.00035068,120]
[339662078,1727820694168,-514.54932685,0.00035079,7]
[339662079,1727820694177,-593.08731422,0.00035079,7]
[339662080,1727820694186,-947.99133299,0.00035079,7]
[339662081,1727820694195,-150.0,0.00035082,120]
[339662082,1727820694204,-150.0,0.00035088,120]
[339662083,1727820694214,-150.0,0.00035234,120]
[339662084,1727820694223,-159.0,0.0003524,4]
[339662085,1727820694232,-500.0,0.00035333,120]
[339662086,1727820694243,-500.0,0.00035351,2]
[339662087,1727820694252,-3182.00572309,0.000354,15]
[339662088,1727820694260,-206.0,0.0003549,30]
[339662089,1727820694269,-514.54932685,0.00035491,7]
[339662090,1727820694278,-593.08731422,0.00035491,7]
[339662091,1727820694287,-947.99133299,0.00035491,7]
[339662092,1727820694296,-1000000.0,0.000355,120]
[339662093,1727820694305,-1387.845293,0.000355,30]
[339662094,1727820694315,-1999.99999905,0.000355,120]
[339662095,1727820694324,-2110.0,0.000355,2]
[339662096,1727820694333,-151.0,0.000355,7]
[339662097,1727820694343,-151.0,0.000355,7]
[339662098,1727820694353,-151.0,0.000355,7]
[339662099,1727820694363,-870.244677,0.000355,7]
[339662100,1727820694373,-870.244677,0.000355,7]
[339662101,1727820694382,-151.0,0.000355,7]
[339662102,1727820694393,-151.0,0.000355,7]
[339662103,1727820694403,-151.0,0.000355,7]
[339662104,1727820694413,-151.0,0.000355,7]
[339662105,1727820694425,-151.0,0.000355,7]
[339662106,1727820694435,-151.0,0.000355,7]
[339662107,1727820694444,-151.0,0.000355,7]
[339662108,1727820694454,-151.0,0.000355,7]
[339662109,1727820694463,-151.0,0.000355,7]
[339662110,1727820694472,-151.0,0.000355,7]
[339662111,1727820694482,-271.477852,0.000355,7]
[339662112,1727820694493,-367.583254,0.000355,7]
[339662113,1727820694503,-367.583254,0.000355,7]
[339662114,1727820694513,-151.0,0.000355,7]
[339662115,1727820694522,-251.71314,0.000355,7]
[339662116,1727820694532,-151.0,0.000355,7]
[339662117,1727820694541,-500.0,0.00035566,2]
[339662118,1727820694550,-500.0,0.00035574,2]
[339662119,1727820694560,-500.0,0.0003558,10]
[339662120,1727820694570,-600.0,0.0003558,10]
[339662121,1727820694580,-442.53571781,0.00035581,7]
[339662122,1727820694589,-1665.414352,0.000356,30]
[339662123,1727820694598,-200.0,0.00035616,60]
[339662124,1727820694608,-271.24,0.00035654,2]
[339662125,1727820694618,-1665.414352,0.000357,30]
[339662126,1727820694629,-150.0,0.00035724,120]
[339662127,1727820694639,-1942.98341,0.000358,30]
[339662128,1727820694648,-1665.414352,0.0003582,30]
[339662129,1727820694659,-150.0,0.000359,120]
[339662130,1727820694669,-514.54932685,0.00035904,7]
[339662131,1727820694678,-593.08731422,0.00035904,7]
[339662132,1727820694688,-947.99133299,0.00035904,7]
[339662133,1727820694699,-50000.0,0.00036,36]
[339662134,1727820694709,-500.0,0.00036,28]
[339662135,1727820694718,-6463.10795448,0.00036,15]
[339662136,1727820694727,-1000000.0,0.00036,120]
[339662137,1727820694737,-1165.64365454,0.00036,2]
[339662138,1727820694747,-627.67967991,0.00036,2]
[339662139,1727820694756,-3000.0,0.00036,120]
[339662140,1727820694766,-3000.0,0.00036,120]
[339662141,1727820694775,-3000.0,0.00036,120]
[339662142,1727820694785,-3000.0,0.00036,120]
[339662143,1727820694796,-2211.8726592,0.00036,120]
[339662144,1727820694805,-458.67946026,0.00036,120]
[339662145,1727820694814,-1800.0,0.00036,37]
[339662146,1727820694824,-2110.0,0.00036,2]
[339662147,1727820694834,-1000.0,0.00036,120]
[339662148,1727820694843,-170.596226,0.00036,7]
[339662149,1727820694852,-151.0,0.00036,7]
[339662150,1727820694862,-155.449932,0.00036,7]
[339662151,1727820694871,-870.244677,0.00036,7]
[339662152,1727820694881,-870.244677,0.00036,7]
[339662153,1727820694890,-151.0,0.00036,7]
[339662154,1727820694900,-151.0,0.00036,7]
[339662155,1727820694910,-151.0,0.00036,7]
[339662156,1727820694919,-151.0,0.00036,7]
[339662157,1727820694928,-151.0,0.00036,7]
[339662158,1727820694937,-151.0,0.00036,7]
[339662159,1727820694946,-170.395653,0.00036,7]
[339662160,1727820694956,-151.0,0.00036,7]
[339662161,1727820694965,-250.0,0.00036,30]
[339662162,1727820694975,-151.0,0.00036,7]
[339662163,1727820694984,-367.583254,0.00036,7]
[339662164,1727820694995,-367.583254,0.00036,7]
[339662165,1727820695005,-151.0,0.00036,7]
[339662166,1727820695014,-208.0,0.00036,2]
[339662167,1727820695024,-151.0,0.00036,7]
[339662168,1727820695033,-150.0,0.00036109,120]
[339662169,1727820695043,-999.0,0.00036164,120]
[339662170,1727820695052,-161.35,0.00036164,2]
[339662171,1727820695062,-150.0,0.00036181,120]
[339662172,1727820695072,-152.0,0.00036196,9]
[339662173,1727820695082,-201.0,0.0003627,30]
[339662174,1727820695092,-150.0,0.00036275,120]
[339662175,1727820695101,-514.54932685,0.00036317,7]
[339662176,1727820695111,-593.08731422,0.00036317,7]
[339662177,1727820695121,-947.99133299,0.00036317,7]
[339662178,1727820695130,-600.0,0.00036402,10]
[339662179,1727820695140,-1000000.0,0.000365,120]
[339662180,1727820695149,-2110.0,0.000365,2]
[339662181,1727820695159,-151.0,0.000365,7]
[339662182,1727820695170,-870.244677,0.000365,7]
[339662183,1727820695180,-870.244677,0.000365,7]
[339662184,1727820695190,-151.0,0.000365,7]
[339662185,1727820695200,-151.0,0.000365,7]
[339662186,1727820695209,-151.0,0.000365,7]
[339662187,1727820695219,-151.0,0.000365,7]
[339662188,1727820695229,-151.0,0.000365,7]
[339662189,1727820695240,-151.0,0.000365,7]
[339662190,1727820695250,-151.0,0.000365,7]
[339662191,1727820695259,-151.0,0.000365,7]
[339662192,1727820695268,-367.583254,0.000365,7]
[339662193,1727820695278,-367.583254,0.000365,7]
[339662194,1727820695288,-151.0,0.000365,7]
[339662195,1727820695298,-151.0,0.000365,7]
[339662196,1727820695307,-306.465869,0.00036667,120]
[339662197,1727820695317,-514.54932685,0.00036729,7]
[339662198,1727820695328,-593.08731422,0.00036729,7]
[339662199,1727820695337,-947.99133299,0.00036729,7]
[339662200,1727820695347,-1261273.42988094,0.000368,7]
[339662201,1727820695356,-1538.85317609,0.000368,7]
[339662202,1727820695366,-151.0,0.000368,7]
[339662203,1727820695375,-870.244677,0.000368,7]
[339662204,1727820695385,-870.244672,0.000368,7]
[339662205,1727820695394,-151.0,0.000368,7]
[339662206,1727820695404,-159.005048,0.000368,7]
[339662207,1727820695414,-151.0,0.000368,7]
[339662208,1727820695423,-151.0,0.000368,7]
[339662209,1727820695433,-162.86127,0.000368,7]
[339662210,1727820695442,-151.0,0.000368,7]
[339662211,1727820695451,-151.0,0.000368,7]
[339662212,1727820695461,-151.0,0.000368,7]
[339662213,1727820695470,-367.583254,0.000368,7]
[339662214,1727820695479,-367.583261,0.000368,7]
[339662215,1727820695489,-223.71014,0.000368,7]
[339662216,1727820695499,-151.0,0.000368,7]
[339662217,1727820695508,-50000.0,0.00037,37]
[339662218,1727820695518,-13961.61047175,0.00037,10]
[339662219,1727820695527,-1800.0,0.00037,38]
[339662220,1727820695537,-1000000.0,0.00037,120]
[339662221,1727820695546,-2110.0,0.00037,2]
[339662222,1727820695556,-1000.0,0.00037,120]
[339662223,1727820695565,-151.0,0.00037,7]
[339662224,1727820695575,-984.0,0.00037042,30]
[339662225,1727820695584,-514.54932685,0.00037142,7]
[339662226,1727820695594,-593.08731422,0.00037142,7]
[339662227,1727820695604,-947.99133299,0.00037142,7]
[339662228,1727820695614,-150.0,0.00037143,120]
[339662229,1727820695631,-206.0,0.0003715,30]
[339662230,1727820695640,-150.0,0.000372,120]
[339662231,1727820695650,-500.0,0.00037224,10]
[339662232,1727820695660,-600.0,0.00037224,10]
[339662233,1727820695670,-150.0,0.0003725,20]
[339662234,1727820695680,-999.0,0.0003726,120]
[339662235,1727820695690,-5664.07601084,0.00037261,60]
[339662236,1727820695700,-1061.39490633,0.00037261,60]
[339662237,1727820695710,-150.0,0.00037266,120]
[339662238,1727820695720,-159.0,0.0003738,4]
[339662239,1727820695729,-5000.0,0.000375,60]
[339662240,1727820695739,-1000000.0,0.000375,120]
[339662241,1727820695748,-2110.0,0.000375,2]
[339662242,1727820695758,-514.54932685,0.00037555,7]
[339662243,1727820695768,-593.08731422,0.00037555,7]
[339662244,1727820695778,-947.99133299,0.00037555,7]
[339662245,1727820695787,-4110.31611133,0.0003759,2]
[339662246,1727820695797,-1400.0,0.000377,30]
[339662247,1727820695807,-1400.0,0.00037772,10]
[339662248,1727820695816,-201.0,0.0003778,30]
[339662249,1727820695826,-164.7358313,0.000378,2]
[339662250,1727820695836,-152.0,0.00037813,10]
[339662251,1727820695846,-2999.99,0.00037896,2]
[339662252,1727820695855,-2999.99,0.00037896,2]
[339662253,1727820695865,-3000.0,0.00037896,2]
[339662254,1727820695874,-3000.0,0.00037896,2]
[339662255,1727820695884,-1093.76,0.00037896,2]
[339662256,1727820695894,-3000.0,0.00037896,2]
[339662257,1727820695904,-10233.6,0.00037898,117]
[339662258,1727820695913,-32148.60557859,0.000379,2]
[339662259,1727820695923,-271.24,0.00037918,2]
[339662260,1727820695933,-514.54932685,0.00037968,7]
[339662261,1727820695943,-593.08731422,0.00037968,7]
[339662262,1727820695953,-947.99133299,0.00037968,7]
[339662263,1727820695963,-2654.05048771,0.00037978,46]
[339662264,1727820695972,-642.58088958,0.00037999,120]
[339662265,1727820695982,-50000.0,0.00038,38]
[339662266,1727820695993,-1000000.0,0.00038,120]
[339662267,1727820696002,-413.35,0.00038,120]
[339662268,1727820696012,-251.25647671,0.00038,4]
[339662269,1727820696022,-2716.0,0.00038,2]
[339662270,1727820696031,-3046.68911563,0.00038,120]
[339662271,1727820696041,-3886.30594262,0.00038,120]
[339662272,1727820696050,-1800.0,0.00038,39]
[339662273,1727820696060,-2110.0,0.00038,2]
[339662274,1727820696069,-1000.0,0.00038,120]
[339662275,1727820696079,-250.0,0.00038,30]
[339662276,1727820696089,-2215.59,0.00038,120]
[339662277,1727820696098,-150.0,0.00038031,120]
[339662278,1727820696108,-600.0,0.00038046,10]
[339662279,1727820696118,-2000.0,0.00038208,2]
[339662280,1727820696127,-840.6616,0.00038208,2]
[339662281,1727820696137,-2000.0,0.00038208,2]
[339662282,1727820696146,-2000.0,0.00038208,2]
[339662283,1727820696156,-2000.0,0.00038208,2]
[339662284,1727820696166,-2500.0,0.00038261,2]
[339662285,1727820696175,-1257.13,0.00038274,2]
[339662286,1727820696185,-150.0,0.00038304,120]
[339662287,1727820696194,-1257.13,0.00038313,2]
[339662288,1727820696203,-3303.278645,0.00038356,120]
[339662289,1727820696213,-500.0,0.00038356,120]
[339662290,1727820696224,-500.0,0.00038356,120]
[339662291,1727820696234,-500.0,0.00038356,120]
[339662292,1727820696246,-501.23499495,0.00038356,120]
[339662293,1727820696255,-500.0,0.00038356,120]
[339662294,1727820696265,-500.0,0.00038356,120]
[339662295,1727820696274,-500.0,0.00038356,120]
[339662296,1727820696283,-626.57073644,0.00038356,120]
[339662297,1727820696292,-193.9679341,0.00038356,120]
[339662298,1727820696302,-500.0,0.00038356,120]
[339662299,1727820696312,-500.0,0.00038356,120]
[339662300,1727820696321,-500.0,0.00038356,120]
[339662301,1727820696330,-500.0,0.00038356,120]
[339662302,1727820696340,-500.0,0.00038356,120]
[339662303,1727820696350,-500.0,0.00038356,120]
[339662304,1727820696360,-500.0,0.00038356,120]
[339662305,1727820696371,-501.01734348,0.00038356,120]
[339662306,1727820696382,-500.0,0.00038356,120]
[339662307,1727820696394,-502.10626398,0.00038356,120]
[339662308,1727820696405,-500.0,0.00038356,120]
[339662309,1727820696415,-500.0,0.00038356,120]
[339662310,1727820696425,-500.0,0.00038356,120]
[339662311,1727820696435,-500.0,0.00038356,120]
[339662312,1727820696445,-205.21459175,0.00038356,120]
[339662313,1727820696455,-500.0,0.00038356,120]
[339662314,1727820696464,-500.0,0.00038356,120]
[339662315,1727820696474,-500.0,0.00038356,120]
[339662316,1727820696485,-500.0,0.00038356,120]
[339662317,1727820696496,-500.0,0.00038356,120]
[339662318,1727820696506,-500.0,0.00038356,120]
[339662319,1727820696516,-500.0,0.00038356,120]
[339662320,1727820696526,-500.0,0.00038356,2]
[339662321,1727820696536,-500.0,0.00038356,120]
[339662322,1727820696547,-500.0,0.00038356,120]
[339662323,1727820696557,-500.0,0.00038356,120]
[339662324,1727820696567,-500.0,0.00038356,120]
[339662325,1727820696577,-500.0,0.00038356,120]
[339662326,1727820696587,-500.0,0.00038356,120]
[339662327,1727820696597,-500.0,0.00038356,120]
[339662328,1727820696607,-500.0,0.00038356,120]
[339662329,1727820696618,-500.0,0.00038356,120]
[339662330,1727820696631,-500.0,0.00038356,120]
[339662331,1727820696641,-500.0,0.00038356,120]
[339662332,1727820696650,-501.96033151,0.00038356,120]
[339662333,1727820696660,-500.0,0.00038356,120]
[339662334,1727820696670,-500.0,0.00038356,120]
[339662335,1727820696681,-500.0,0.00038356,120]
[339662336,1727820696691,-174.98866934,0.00038356,120]
[339662337,1727820696702,-500.0,0.00038356,120]
[339662338,1727820696712,-500.0,0.00038356,120]
[339662339,1727820696722,-500.0,0.00038356,120]
[339662340,1727820696732,-500.0,0.00038356,120]
[339662341,1727820696742,-500.0,0.00038356,120]
[339662342,1727820696752,-584.12305848,0.00038356,120]
[339662343,1727820696763,-500.0,0.00038356,120]
[339662344,1727820696773,-500.0,0.00038356,120]
[339662345,1727820696782,-500.0,0.00038356,120]
[339662346,1727820696792,-500.0,0.00038356,120]
[339662347,1727820696801,-500.0,0.00038356,120]
[339662348,1727820696811,-500.0,0.00038356,120]
[339662349,1727820696821,-500.0,0.00038356,120]
[339662350,1727820696830,-500.0,0.00038356,120]
[339662351,1727820696840,-500.0,0.00038356,120]
[339662352,1727820696850,-500.62801327,0.00038356,120]
[339662353,1727820696860,-500.0,0.00038356,120]
[339662354,1727820696870,-625.81,0.00038356,120]
[339662355,1727820696881,-376.14524289,0.00038356,120]
[339662356,1727820696891,-500.0,0.00038356,120]
[339662357,1727820696900,-1230.79,0.00038356,120]
[339662358,1727820696910,-1018.83,0.00038356,120]
[339662359,1727820696919,-500.0,0.00038356,120]
[339662360,1727820696929,-500.0,0.00038356,120]
[339662361,1727820696938,-500.0,0.00038356,120]
[339662362,1727820696948,-500.0,0.00038356,120]
[339662363,1727820696957,-500.0,0.00038356,120]
[339662364,1727820696966,-500.0,0.00038356,120]
[339662365,1727820696976,-2618.09,0.00038356,120]
[339662366,1727820696985,-500.0,0.00038356,120]
[339662367,1727820697001,-500.0,0.00038356,120]
[339662368,1727820697011,-500.58145238,0.00038356,120]
[339662369,1727820697020,-500.0,0.00038356,120]
[339662370,1727820697030,-869.23,0.00038356,120]
[339662371,1727820697041,-1127.66,0.00038356,120]
[339662372,1727820697051,-500.0,0.00038356,120]
[339662373,1727820697061,-500.0,0.00038356,120]
[339662374,1727820697071,-500.0,0.00038356,120]
[339662375,1727820697081,-500.0,0.00038356,120]
[339662376,1727820697091,-1370.44,0.00038356,120]
[339662377,1727820697100,-500.0,0.00038356,120]
[339662378,1727820697110,-1287.86,0.00038356,120]
[339662379,1727820697120,-709.65,0.00038356,120]
[339662380,1727820697130,-500.0,0.00038356,120]
[339662381,1727820697140,-500.0,0.00038356,120]
[339662382,1727820697150,-500.0,0.00038356,120]
[339662383,1727820697160,-500.0,0.00038356,120]
[339662384,1727820697169,-500.0,0.00038356,120]
[339662385,1727820697179,-500.0,0.00038356,120]
[339662386,1727820697189,-500.0,0.00038356,120]
[339662387,1727820697199,-500.0,0.00038356,120]
[339662388,1727820697209,-500.0,0.00038356,120]
[339662389,1727820697220,-592.83,0.00038356,120]
[339662390,1727820697481,-592.83,0.00038356,120]
[339662391,1727820697492,-592.83,0.00038356,120]
[339662392,1727820697502,-500.0,0.00038356,120]
[339662393,1727820697511,-944.29,0.00038356,120]
[339662394,1727820697521,-592.83,0.00038356,120]
[339662395,1727820697530,-592.83,0.00038356,120]
[339662396,1727820697540,-592.83,0.00038356,120]
[339662397,1727820697550,-500.0,0.00038356,120]
[339662398,1727820697559,-592.83,0.00038356,120]
[339662399,1727820697569,-592.83,0.00038356,120]
[339662400,1727820697580,-592.83,0.00038356,120]
[339662401,1727820697589,-592.83,0.00038356,120]
[339662402,1727820697600,-592.83,0.00038356,120]
[339662403,1727820697609,-592.83,0.00038356,120]
[339662404,1727820697621,-592.83,0.00038356,120]
[339662405,1727820697634,-592.83,0.00038356,120]
[339662406,1727820697644,-592.83,0.00038356,120]
[339662407,1727820697654,-592.83,0.00038356,120]
[339662408,1727820697664,-592.83,0.00038356,120]
[339662409,1727820697674,-592.83,0.00038356,120]
[339662410,1727820697685,-150.0,0.00038356,120]
[339662411,1727820697694,-592.83,0.00038356,120]
[339662412,1727820697708,-1241.62,0.00038356,120]
[339662413,1727820697718,-592.83,0.00038356,120]
[339662414,1727820697727,-1241.62,0.00038356,120]
[339662415,1727820697738,-592.83,0.00038356,120]
[339662416,1727820697748,-1241.62,0.00038356,120]
[339662417,1727820697758,-592.83,0.00038356,120]
[339662418,1727820697768,-1241.62,0.00038356,120]